[Event "Titled Tuesday Blitz March 08 Early 2022"]
[White "Osmonbekov, Talaibek"]
[Black "Voit, Daria"]
[WhiteFideId "2017253"]
[BlackFideId "4182146"]
[WhiteElo "2135"]
[BlackElo "2323"]
[Result "0-1"]
[Round "04"]
[TimeControl "180+1"]
[Date "2022.03.09"]
[WhiteClock "0:00:03"]
[BlackClock "0:00:08"]

1. Nc3 {[%clk 0:02:43]}  e5 {[%clk 0:02:55]} 2. d4 {[%clk 0:02:41]}  exd4 {[%clk 0:02:54]} 3. Qxd4 {[%clk 0:02:41]}  Nc6 {[%clk 0:02:54]} 4. Qd1 {[%clk 0:02:42]}  Nf6 {[%clk 0:02:52]} 5. e4 {[%clk 0:02:42]}  Bb4 {[%clk 0:02:52]} 6. Bd3 {[%clk 0:02:42]}  O-O {[%clk 0:02:49]} 7. Ne2 {[%clk 0:02:42]}  d6 {[%clk 0:02:36]} 8. O-O {[%clk 0:02:42]}  Ne5 {[%clk 0:02:36]} 9. Bb5 {[%clk 0:02:28]}  a6 {[%clk 0:02:34]} 10. Ba4 {[%clk 0:02:28]}  h6 {[%clk 0:02:32]} 11. Bb3 {[%clk 0:02:25]}  Bg4 {[%clk 0:02:30]} 12. f3 {[%clk 0:02:23]}  Bc5+ {[%clk 0:02:30]} 13. Kh1 {[%clk 0:02:22]}  Be6 {[%clk 0:02:28]} 14. Bf4 {[%clk 0:02:12]}  Nc4 {[%clk 0:02:21]} 15. Rb1 {[%clk 0:02:01]}  Ne3 {[%clk 0:02:12]} 16. Bxe3 {[%clk 0:02:00]}  Bxe3 {[%clk 0:02:12]} 17. Qd3 {[%clk 0:02:01]}  Bb6 {[%clk 0:02:11]} 18. Nd4 {[%clk 0:01:56]}  Bxb3 {[%clk 0:01:55]} 19. axb3 {[%clk 0:01:55]}  Nh5 {[%clk 0:01:32]} 20. Nf5 {[%clk 0:01:47]}  Re8 {[%clk 0:01:25]} 21. Nd5 {[%clk 0:01:41]}  Ba7 {[%clk 0:01:24]} 22. Rbd1 {[%clk 0:01:40]}  Rc8 {[%clk 0:01:17]} 23. c4 {[%clk 0:01:37]}  Kh7 {[%clk 0:01:17]} 24. Qc3 {[%clk 0:01:29]}  Qg5 {[%clk 0:01:06]} 25. g4 {[%clk 0:01:23]}  Nf6 {[%clk 0:01:02]} 26. Nxf6+ {[%clk 0:01:07]}  Qxf6 {[%clk 0:01:02]} 27. Qxf6 {[%clk 0:01:06]}  gxf6 {[%clk 0:01:03]} 28. Rd2 {[%clk 0:00:55]}  Bc5 {[%clk 0:01:02]} 29. Rfd1 {[%clk 0:00:51]}  a5 {[%clk 0:01:02]} 30. Rg2 {[%clk 0:00:51]}  Ra8 {[%clk 0:01:00]} 31. Rg3 {[%clk 0:00:50]}  Rh8 {[%clk 0:00:54]} 32. Rh3 {[%clk 0:00:48]}  Kg6 {[%clk 0:00:55]} 33. Ne7+ {[%clk 0:00:43]}  Kg7 {[%clk 0:00:53]} 34. Nf5+ {[%clk 0:00:43]}  Kg6 {[%clk 0:00:52]} 35. Rh5 {[%clk 0:00:32]}  a4 {[%clk 0:00:48]} 36. Ra1 {[%clk 0:00:32]}  axb3 {[%clk 0:00:39]} 37. Rxa8 {[%clk 0:00:31]}  Rxa8 {[%clk 0:00:40]} 38. h4 {[%clk 0:00:17]}  Ra1+ {[%clk 0:00:38]} 39. Kg2 {[%clk 0:00:17]}  Kh7 {[%clk 0:00:36]} 40. Rxh6+ {[%clk 0:00:17]}  Kg8 {[%clk 0:00:37]} 41. Rxf6 {[%clk 0:00:16]}  Rb1 {[%clk 0:00:33]} 42. g5 {[%clk 0:00:16]}  Rxb2+ {[%clk 0:00:32]} 43. Kh3 {[%clk 0:00:16]}  Rd2 {[%clk 0:00:25]} 44. Nh6+ {[%clk 0:00:15]}  Kh8 {[%clk 0:00:16]} 45. Nxf7+ {[%clk 0:00:14]}  Kg7 {[%clk 0:00:16]} 46. h5 {[%clk 0:00:14]}  Bd4 {[%clk 0:00:16]} 47. h6+ {[%clk 0:00:12]}  Kg8 {[%clk 0:00:17]} 48. Rf5 {[%clk 0:00:09]}  b2 {[%clk 0:00:13]} 49. Rb5 {[%clk 0:00:04]}  b6 {[%clk 0:00:12]} 50. g6 {[%clk 0:00:04]}  Rd1 {[%clk 0:00:09]} 51. h7+ {[%clk 0:00:03]}  Kf8 {[%clk 0:00:08]} 0-1


[Site "https://www.chess.com"]

[Event "Titled Tuesday Blitz March 08 Early 2022"]
[White "Perez Gormaz, Matias"]
[Black "Havanecz, Bianka"]
[WhiteFideId "3406342"]
[BlackFideId "704814"]
[WhiteElo "2327"]
[BlackElo "2378"]
[Result "1/2-1/2"]
[Round "04"]
[TimeControl "180+1"]
[Date "2022.03.09"]
[WhiteClock "0:00:02"]
[BlackClock "0:00:15"]

1. e4 {[%clk 0:03:00]}  c6 {[%clk 0:02:59]} 2. Nf3 {[%clk 0:03:00]}  d5 {[%clk 0:02:59]} 3. Nc3 {[%clk 0:03:00]}  Bg4 {[%clk 0:02:58]} 4. h3 {[%clk 0:03:01]}  Bxf3 {[%clk 0:02:58]} 5. Qxf3 {[%clk 0:03:01]}  e6 {[%clk 0:02:58]} 6. Be2 {[%clk 0:02:59]}  Nf6 {[%clk 0:02:58]} 7. O-O {[%clk 0:02:55]}  Be7 {[%clk 0:02:54]} 8. Rd1 {[%clk 0:02:49]}  O-O {[%clk 0:02:51]} 9. d4 {[%clk 0:02:49]}  a5 {[%clk 0:02:43]} 10. a4 {[%clk 0:02:45]}  Na6 {[%clk 0:02:27]} 11. Bf4 {[%clk 0:02:34]}  Nb4 {[%clk 0:02:20]} 12. Rac1 {[%clk 0:02:34]}  Nd7 {[%clk 0:01:46]} 13. Qg3 {[%clk 0:02:26]}  Kh8 {[%clk 0:01:39]} 14. Re1 {[%clk 0:01:51]}  Bh4 {[%clk 0:01:37]} 15. Qe3 {[%clk 0:01:45]}  Re8 {[%clk 0:00:50]} 16. e5 {[%clk 0:01:33]}  f6 {[%clk 0:00:46]} 17. Nd1 {[%clk 0:01:05]}  fxe5 {[%clk 0:00:44]} 18. dxe5 {[%clk 0:01:06]}  Be7 {[%clk 0:00:43]} 19. c3 {[%clk 0:01:04]}  Na6 {[%clk 0:00:43]} 20. Bd3 {[%clk 0:01:04]}  Nac5 {[%clk 0:00:42]} 21. Bc2 {[%clk 0:01:04]}  Nf8 {[%clk 0:00:39]} 22. Ra1 {[%clk 0:00:52]}  b5 {[%clk 0:00:39]} 23. axb5 {[%clk 0:00:51]}  cxb5 {[%clk 0:00:40]} 24. g3 {[%clk 0:00:45]}  b4 {[%clk 0:00:39]} 25. h4 {[%clk 0:00:44]}  bxc3 {[%clk 0:00:39]} 26. Qxc3 {[%clk 0:00:38]}  Qb6 {[%clk 0:00:34]} 27. Be3 {[%clk 0:00:21]}  Rec8 {[%clk 0:00:34]} 28. Qd2 {[%clk 0:00:20]}  Qb5 {[%clk 0:00:27]} 29. Nc3 {[%clk 0:00:19]}  Qa6 {[%clk 0:00:25]} 30. Bd4 {[%clk 0:00:15]}  Qb7 {[%clk 0:00:23]} 31. Reb1 {[%clk 0:00:14]}  Nb3 {[%clk 0:00:23]} 32. Bxb3 {[%clk 0:00:11]}  Qxb3 {[%clk 0:00:24]} 33. h5 {[%clk 0:00:09]}  h6 {[%clk 0:00:22]} 34. Qd1 {[%clk 0:00:07]}  Qxd1+ {[%clk 0:00:20]} 35. Rxd1 {[%clk 0:00:08]}  Bb4 {[%clk 0:00:20]} 36. Ne2 {[%clk 0:00:08]}  Rc2 {[%clk 0:00:19]} 37. Nf4 {[%clk 0:00:08]}  Rac8 {[%clk 0:00:18]} 38. Kg2 {[%clk 0:00:05]}  Kg8 {[%clk 0:00:19]} 39. Kf3 {[%clk 0:00:05]}  Kf7 {[%clk 0:00:19]} 40. Rd3 {[%clk 0:00:06]}  Nd7 {[%clk 0:00:19]} 41. Rdd1 {[%clk 0:00:05]}  Rd2 {[%clk 0:00:18]} 42. Rxd2 {[%clk 0:00:04]}  Bxd2 {[%clk 0:00:19]} 43. Nd3 {[%clk 0:00:03]}  Rc2 {[%clk 0:00:18]} 44. Rd1 {[%clk 0:00:02]}  Bb4 {[%clk 0:00:18]} 45. Nxb4 {[%clk 0:00:02]}  axb4 {[%clk 0:00:19]} 46. Re1 {[%clk 0:00:02]}  Nc5 {[%clk 0:00:18]} 47. Re2 {[%clk 0:00:02]}  Rxe2 {[%clk 0:00:18]} 48. Kxe2 {[%clk 0:00:03]}  Nb3 {[%clk 0:00:18]} 49. Be3 {[%clk 0:00:02]}  Ke7 {[%clk 0:00:17]} 50. Kd3 {[%clk 0:00:03]}  Na5 {[%clk 0:00:15]} 51. f4 {[%clk 0:00:03]}  b3 {[%clk 0:00:15]} 52. Bd2 {[%clk 0:00:03]}  Nc4 {[%clk 0:00:15]} 53. Bc3 {[%clk 0:00:04]}  Kf7 {[%clk 0:00:15]} 54. g4 {[%clk 0:00:04]}  g6 {[%clk 0:00:15]} 55. Bd4 {[%clk 0:00:04]}  gxh5 {[%clk 0:00:15]} 56. gxh5 {[%clk 0:00:04]}  Ke7 {[%clk 0:00:14]} 57. Kc3 {[%clk 0:00:05]}  Kd7 {[%clk 0:00:13]} 58. Kxb3 {[%clk 0:00:05]}  Nd2+ {[%clk 0:00:14]} 59. Kc3 {[%clk 0:00:05]}  Ne4+ {[%clk 0:00:14]} 60. Kd3 {[%clk 0:00:05]}  Ng3 {[%clk 0:00:15]} 61. Be3 {[%clk 0:00:05]}  Nxh5 {[%clk 0:00:15]} 62. b4 {[%clk 0:00:05]}  Ng7 {[%clk 0:00:15]} 63. Bf2 {[%clk 0:00:03]}  Kc6 {[%clk 0:00:15]} 64. Ke2 {[%clk 0:00:02]}  Nf5 {[%clk 0:00:15]} 65. Kf3 {[%clk 0:00:03]}  Kb5 {[%clk 0:00:15]} 66. Kg4 {[%clk 0:00:04]}  Kxb4 {[%clk 0:00:15]} 67. Kh5 {[%clk 0:00:04]}  Kc4 {[%clk 0:00:16]} 68. Kg6 {[%clk 0:00:05]}  Kd3 {[%clk 0:00:16]} 69. Kf6 {[%clk 0:00:06]}  Ke4 {[%clk 0:00:15]} 70. Kxe6 {[%clk 0:00:06]}  Kxf4 {[%clk 0:00:16]} 71. Kxd5 {[%clk 0:00:06]}  h5 {[%clk 0:00:15]} 72. e6 {[%clk 0:00:07]}  Kg5 {[%clk 0:00:15]} 73. Kc6 {[%clk 0:00:06]}  Kf6 {[%clk 0:00:15]} 74. Kd7 {[%clk 0:00:06]}  Ke5 {[%clk 0:00:14]} 75. Be1 {[%clk 0:00:03]}  Kf6 {[%clk 0:00:14]} 76. Bh4+ {[%clk 0:00:03]}  Ke5 {[%clk 0:00:14]} 77. Be1 {[%clk 0:00:02]}  Kf6 {[%clk 0:00:15]} 78. Bc3+ {[%clk 0:00:03]}  Kg6 {[%clk 0:00:15]} 79. Be1 {[%clk 0:00:02]}  Kf6 {[%clk 0:00:15]} 1/2-1/2


[Site "https://www.chess.com"]

[Event "Titled Tuesday Blitz March 08 Early 2022"]
[White "Piliczewski, Bogusz"]
[Black "Kuderinov, Kirill"]
[WhiteFideId "1104144"]
[BlackFideId "13701568"]
[WhiteElo "1896"]
[BlackElo "2432"]
[Result "0-1"]
[Round "04"]
[TimeControl "180+1"]
[Date "2022.03.09"]
[WhiteClock "0:00:02"]
[BlackClock "0:00:30"]

1. d4 {[%clk 0:03:00]}  Nf6 {[%clk 0:02:59]} 2. Nf3 {[%clk 0:03:01]}  g6 {[%clk 0:02:58]} 3. Bf4 {[%clk 0:03:02]}  Bg7 {[%clk 0:02:59]} 4. e3 {[%clk 0:03:02]}  O-O {[%clk 0:02:59]} 5. h3 {[%clk 0:03:01]}  d6 {[%clk 0:03:00]} 6. Be2 {[%clk 0:03:02]}  b6 {[%clk 0:02:59]} 7. O-O {[%clk 0:03:02]}  Bb7 {[%clk 0:03:00]} 8. Nbd2 {[%clk 0:03:02]}  Nbd7 {[%clk 0:03:00]} 9. c3 {[%clk 0:03:02]}  c5 {[%clk 0:03:00]} 10. Bh2 {[%clk 0:03:00]}  Re8 {[%clk 0:03:00]} 11. a4 {[%clk 0:02:57]}  e5 {[%clk 0:02:56]} 12. Nc4 {[%clk 0:02:50]}  Ne4 {[%clk 0:02:49]} 13. dxe5 {[%clk 0:02:30]}  Nxe5 {[%clk 0:02:39]} 14. Nfxe5 {[%clk 0:02:09]}  dxe5 {[%clk 0:02:40]} 15. Bf3 {[%clk 0:02:04]}  Qe7 {[%clk 0:02:30]} 16. Qc2 {[%clk 0:01:51]}  f5 {[%clk 0:02:26]} 17. Rad1 {[%clk 0:01:45]}  Rad8 {[%clk 0:02:25]} 18. Rxd8 {[%clk 0:01:41]}  Rxd8 {[%clk 0:02:26]} 19. Rd1 {[%clk 0:01:41]}  Rxd1+ {[%clk 0:02:16]} 20. Qxd1 {[%clk 0:01:39]}  h6 {[%clk 0:02:14]} 21. Bxe4 {[%clk 0:01:34]}  Bxe4 {[%clk 0:02:14]} 22. Nd6 {[%clk 0:01:33]}  Bc6 {[%clk 0:02:10]} 23. Nb5 {[%clk 0:01:22]}  a6 {[%clk 0:01:58]} 24. Qd6 {[%clk 0:01:22]}  Qxd6 {[%clk 0:01:54]} 25. Nxd6 {[%clk 0:01:22]}  Bxa4 {[%clk 0:01:53]} 26. Nc4 {[%clk 0:01:17]}  b5 {[%clk 0:01:16]} 27. Nxe5 {[%clk 0:01:16]}  b4 {[%clk 0:01:14]} 28. Nd3 {[%clk 0:01:08]}  bxc3 {[%clk 0:00:59]} 29. bxc3 {[%clk 0:01:07]}  Bxc3 {[%clk 0:00:53]} 30. Nxc5 {[%clk 0:01:07]}  Bb5 {[%clk 0:00:52]} 31. Nb3 {[%clk 0:00:44]}  a5 {[%clk 0:00:51]} 32. Bd6 {[%clk 0:00:44]}  a4 {[%clk 0:00:48]} 33. Nc1 {[%clk 0:00:42]}  Bb2 {[%clk 0:00:41]} 34. Na2 {[%clk 0:00:36]}  Bc4 {[%clk 0:00:41]} 35. Nb4 {[%clk 0:00:25]}  a3 {[%clk 0:00:40]} 36. Nc2 {[%clk 0:00:20]}  a2 {[%clk 0:00:38]} 37. f4 {[%clk 0:00:15]}  Bb3 {[%clk 0:00:37]} 38. Ba3 {[%clk 0:00:05]}  Bxa3 {[%clk 0:00:31]} 39. Na1 {[%clk 0:00:04]}  Ba4 {[%clk 0:00:30]} 40. Kf2 {[%clk 0:00:02]}  Bb2 {[%clk 0:00:30]} 0-1


[Site "https://www.chess.com"]

[Event "Titled Tuesday Blitz March 08 Early 2022"]
[White "Plotnikov, Pavel"]
[Black "Vianello, Enrico"]
[WhiteFideId "4170342"]
[BlackFideId "810738"]
[WhiteElo "2298"]
[BlackElo "2318"]
[Result "1-0"]
[Round "04"]
[TimeControl "180+1"]
[Date "2022.03.09"]
[WhiteClock "0:01:23"]
[BlackClock "0:00:10"]

1. e4 {[%clk 0:02:49]}  d6 {[%clk 0:03:00]} 2. d4 {[%clk 0:02:49]}  Nf6 {[%clk 0:03:00]} 3. Nc3 {[%clk 0:02:49]}  e5 {[%clk 0:03:00]} 4. Nf3 {[%clk 0:02:49]}  Nbd7 {[%clk 0:02:59]} 5. Bc4 {[%clk 0:02:49]}  Be7 {[%clk 0:02:59]} 6. a4 {[%clk 0:02:49]}  O-O {[%clk 0:02:55]} 7. a5 {[%clk 0:02:49]}  c6 {[%clk 0:02:38]} 8. O-O {[%clk 0:02:48]}  Rb8 {[%clk 0:02:37]} 9. Be3 {[%clk 0:02:44]}  b5 {[%clk 0:02:37]} 10. axb6 {[%clk 0:02:42]}  axb6 {[%clk 0:02:37]} 11. d5 {[%clk 0:02:32]}  b5 {[%clk 0:02:10]} 12. Be2 {[%clk 0:02:06]}  b4 {[%clk 0:02:08]} 13. dxc6 {[%clk 0:02:05]}  Nc5 {[%clk 0:01:55]} 14. Nd5 {[%clk 0:02:01]}  Nxd5 {[%clk 0:01:43]} 15. exd5 {[%clk 0:02:01]}  f5 {[%clk 0:01:41]} 16. Bxc5 {[%clk 0:01:59]}  dxc5 {[%clk 0:01:39]} 17. Nxe5 {[%clk 0:01:59]}  f4 {[%clk 0:01:34]} 18. Nc4 {[%clk 0:01:55]}  Bd6 {[%clk 0:01:33]} 19. Bf3 {[%clk 0:01:54]}  Bf5 {[%clk 0:01:23]} 20. Re1 {[%clk 0:01:52]}  Rf6 {[%clk 0:01:20]} 21. Ra7 {[%clk 0:01:47]}  Qf8 {[%clk 0:01:02]} 22. Bg4 {[%clk 0:01:42]}  Bg6 {[%clk 0:00:23]} 23. Re6 {[%clk 0:01:36]}  Rxe6 {[%clk 0:00:15]} 24. Bxe6+ {[%clk 0:01:30]}  Kh8 {[%clk 0:00:15]} 25. Rd7 {[%clk 0:01:28]}  Be7 {[%clk 0:00:12]} 26. c7 {[%clk 0:01:26]}  Rc8 {[%clk 0:00:11]} 27. d6 {[%clk 0:01:26]}  Bf6 {[%clk 0:00:10]} 28. Nb6 {[%clk 0:01:23]} 1-0


[Site "https://www.chess.com"]

[Event "Titled Tuesday Blitz March 08 Early 2022"]
[White "Popadic, Dragan"]
[Black "Goryachkina, Aleksandra"]
[WhiteFideId "913650"]
[BlackFideId "4147103"]
[WhiteElo "2222"]
[BlackElo "2426"]
[Result "1-0"]
[Round "04"]
[TimeControl "180+1"]
[Date "2022.03.09"]
[WhiteClock "0:00:04"]
[BlackClock "0:00:02"]

1. e4 {[%clk 0:03:00]}  c5 {[%clk 0:02:59]} 2. Nc3 {[%clk 0:02:59]}  Nc6 {[%clk 0:02:56]} 3. f4 {[%clk 0:02:58]}  g6 {[%clk 0:02:52]} 4. Nf3 {[%clk 0:02:58]}  Bg7 {[%clk 0:02:52]} 5. Bc4 {[%clk 0:02:57]}  e6 {[%clk 0:02:46]} 6. f5 {[%clk 0:02:57]}  gxf5 {[%clk 0:02:36]} 7. d3 {[%clk 0:02:56]}  Nge7 {[%clk 0:02:30]} 8. O-O {[%clk 0:02:55]}  d6 {[%clk 0:02:21]} 9. Qe1 {[%clk 0:02:53]}  Nd4 {[%clk 0:02:07]} 10. Nxd4 {[%clk 0:02:50]}  cxd4 {[%clk 0:02:03]} 11. Ne2 {[%clk 0:02:50]}  d5 {[%clk 0:01:58]} 12. exd5 {[%clk 0:02:46]}  Nxd5 {[%clk 0:01:55]} 13. Qg3 {[%clk 0:02:29]}  Bf6 {[%clk 0:01:51]} 14. Nf4 {[%clk 0:02:17]}  Nxf4 {[%clk 0:01:42]} 15. Bxf4 {[%clk 0:02:17]}  Bd7 {[%clk 0:01:19]} 16. Bc7 {[%clk 0:02:06]}  Qc8 {[%clk 0:01:16]} 17. Rae1 {[%clk 0:01:59]}  Be7 {[%clk 0:00:19]} 18. Be5 {[%clk 0:01:42]}  Rf8 {[%clk 0:00:19]} 19. Qg7 {[%clk 0:01:34]}  Qc6 {[%clk 0:00:15]} 20. Bf6 {[%clk 0:01:20]}  Bxf6 {[%clk 0:00:11]} 21. Qxf6 {[%clk 0:01:19]}  Rg8 {[%clk 0:00:09]} 22. Re2 {[%clk 0:01:08]}  Qc5 {[%clk 0:00:06]} 23. Rxf5 {[%clk 0:00:58]}  Qe7 {[%clk 0:00:06]} 24. Qxd4 {[%clk 0:00:45]}  O-O-O {[%clk 0:00:06]} 25. Rff2 {[%clk 0:00:41]}  Bc6 {[%clk 0:00:06]} 26. Qf4 {[%clk 0:00:31]}  Rg7 {[%clk 0:00:06]} 27. Qf6 {[%clk 0:00:29]}  Qxf6 {[%clk 0:00:06]} 28. Rxf6 {[%clk 0:00:29]}  Rdg8 {[%clk 0:00:07]} 29. g3 {[%clk 0:00:22]}  Kd7 {[%clk 0:00:06]} 30. Rh6 {[%clk 0:00:17]}  Ke7 {[%clk 0:00:07]} 31. Kf2 {[%clk 0:00:17]}  b5 {[%clk 0:00:07]} 32. Bb3 {[%clk 0:00:16]}  a5 {[%clk 0:00:07]} 33. c3 {[%clk 0:00:16]}  a4 {[%clk 0:00:06]} 34. Bc2 {[%clk 0:00:16]}  f6 {[%clk 0:00:04]} 35. a3 {[%clk 0:00:16]}  Rg6 {[%clk 0:00:03]} 36. Rxh7+ {[%clk 0:00:15]}  R6g7 {[%clk 0:00:04]} 37. Rxg7+ {[%clk 0:00:14]}  Rxg7 {[%clk 0:00:05]} 38. d4 {[%clk 0:00:14]}  Bd5 {[%clk 0:00:05]} 39. h4 {[%clk 0:00:14]}  Bc4 {[%clk 0:00:05]} 40. Re3 {[%clk 0:00:14]}  Kd6 {[%clk 0:00:05]} 41. Bd1 {[%clk 0:00:14]}  f5 {[%clk 0:00:05]} 42. Bf3 {[%clk 0:00:14]}  Rg8 {[%clk 0:00:03]} 43. Re5 {[%clk 0:00:13]}  Rg7 {[%clk 0:00:03]} 44. Re3 {[%clk 0:00:12]}  Rg8 {[%clk 0:00:03]} 45. Be2 {[%clk 0:00:12]}  Rg7 {[%clk 0:00:03]} 46. Bxc4 {[%clk 0:00:12]}  bxc4 {[%clk 0:00:04]} 47. Re2 {[%clk 0:00:10]}  Rb7 {[%clk 0:00:02]} 48. Kf3 {[%clk 0:00:08]}  Rb5 {[%clk 0:00:01]} 49. Kf4 {[%clk 0:00:08]}  Rb8 {[%clk 0:00:01]} 50. h5 {[%clk 0:00:07]}  Rg8 {[%clk 0:00:01]} 51. Rh2 {[%clk 0:00:06]}  Rg4+ {[%clk 0:00:02]} 52. Kf3 {[%clk 0:00:06]}  Ke7 {[%clk 0:00:02]} 53. h6 {[%clk 0:00:06]}  Rg8 {[%clk 0:00:02]} 54. h7 {[%clk 0:00:06]}  Rh8 {[%clk 0:00:03]} 55. Kf4 {[%clk 0:00:06]}  Kf6 {[%clk 0:00:03]} 56. Rh6+ {[%clk 0:00:06]}  Kg7 {[%clk 0:00:03]} 57. Rxe6 {[%clk 0:00:05]}  Rxh7 {[%clk 0:00:02]} 58. Re7+ {[%clk 0:00:04]} 1-0


[Site "https://www.chess.com"]

[Event "Titled Tuesday Blitz March 08 Early 2022"]
[White "Prohorov, Olexandr"]
[Black "Iljin, Timofey"]
[WhiteFideId "14105578"]
[BlackFideId "14110180"]
[WhiteElo "1993"]
[BlackElo "2396"]
[Result "1/2-1/2"]
[Round "04"]
[TimeControl "180+1"]
[Date "2022.03.09"]
[WhiteClock "0:00:51"]
[BlackClock "0:00:42"]

1. Nf3 {[%clk 0:02:49]}  f5 {[%clk 0:02:59]} 2. e4 {[%clk 0:02:49]}  d6 {[%clk 0:02:51]} 3. Nc3 {[%clk 0:02:33]}  Nf6 {[%clk 0:02:50]} 4. exf5 {[%clk 0:02:29]}  Bxf5 {[%clk 0:02:51]} 5. d4 {[%clk 0:02:29]}  g6 {[%clk 0:02:50]} 6. Bg5 {[%clk 0:02:28]}  Bg7 {[%clk 0:02:50]} 7. Bc4 {[%clk 0:02:28]}  e6 {[%clk 0:02:48]} 8. O-O {[%clk 0:02:27]}  O-O {[%clk 0:02:48]} 9. h3 {[%clk 0:02:27]}  h6 {[%clk 0:02:37]} 10. Bh4 {[%clk 0:02:26]}  Nc6 {[%clk 0:02:17]} 11. Re1 {[%clk 0:02:20]}  d5 {[%clk 0:02:14]} 12. Bb5 {[%clk 0:02:19]}  g5 {[%clk 0:02:09]} 13. Bg3 {[%clk 0:02:19]}  Ne4 {[%clk 0:02:06]} 14. Bxc6 {[%clk 0:02:07]}  bxc6 {[%clk 0:02:05]} 15. Ne5 {[%clk 0:02:01]}  Bxe5 {[%clk 0:01:57]} 16. Bxe5 {[%clk 0:01:58]}  Nxf2 {[%clk 0:01:40]} 17. Qh5 {[%clk 0:01:43]}  Kh7 {[%clk 0:01:39]} 18. Rf1 {[%clk 0:01:35]}  Ne4 {[%clk 0:01:36]} 19. Nxe4 {[%clk 0:01:32]}  dxe4 {[%clk 0:01:22]} 20. Rf2 {[%clk 0:01:12]}  Bg6 {[%clk 0:01:12]} 21. Qg4 {[%clk 0:01:08]}  Rxf2 {[%clk 0:01:10]} 22. Kxf2 {[%clk 0:01:08]}  Qf8+ {[%clk 0:01:01]} 23. Kg1 {[%clk 0:01:07]}  Qf5 {[%clk 0:01:01]} 24. Qg3 {[%clk 0:01:05]}  Rf8 {[%clk 0:00:57]} 25. Bxc7 {[%clk 0:01:05]}  h5 {[%clk 0:00:57]} 26. Bd6 {[%clk 0:00:53]}  Rf7 {[%clk 0:00:49]} 27. Re1 {[%clk 0:00:53]}  h4 {[%clk 0:00:42]} 28. Qe3 {[%clk 0:00:51]} 1/2-1/2


[Site "https://www.chess.com"]

[Event "Titled Tuesday Blitz March 08 Early 2022"]
[White "Proudian, Armen"]
[Black "Izoria, Zviad"]
[WhiteFideId "2130734"]
[BlackFideId "13601733"]
[WhiteElo "2380"]
[BlackElo "2626"]
[Result "1-0"]
[Round "04"]
[TimeControl "180+1"]
[Date "2022.03.08"]
[WhiteClock "0:00:18"]
[BlackClock "0:00:02"]

1. e4 {[%clk 0:02:59]}  c5 {[%clk 0:02:53]} 2. Nf3 {[%clk 0:02:58]}  a6 {[%clk 0:02:53]} 3. c3 {[%clk 0:02:58]}  e6 {[%clk 0:02:53]} 4. d4 {[%clk 0:02:58]}  d5 {[%clk 0:02:53]} 5. exd5 {[%clk 0:02:58]}  exd5 {[%clk 0:02:54]} 6. Bd3 {[%clk 0:02:53]}  c4 {[%clk 0:02:54]} 7. Bc2 {[%clk 0:02:51]}  Bd6 {[%clk 0:02:54]} 8. O-O {[%clk 0:02:48]}  Ne7 {[%clk 0:02:53]} 9. Re1 {[%clk 0:02:34]}  O-O {[%clk 0:02:48]} 10. Nbd2 {[%clk 0:02:33]}  Nbc6 {[%clk 0:02:44]} 11. Nf1 {[%clk 0:02:32]}  Bf5 {[%clk 0:02:44]} 12. Bg5 {[%clk 0:02:25]}  Bxc2 {[%clk 0:02:28]} 13. Qxc2 {[%clk 0:02:26]}  f6 {[%clk 0:02:03]} 14. Bh4 {[%clk 0:02:23]}  Qd7 {[%clk 0:02:01]} 15. Re2 {[%clk 0:02:18]}  Qf5 {[%clk 0:01:57]} 16. Bg3 {[%clk 0:02:16]}  Qxc2 {[%clk 0:01:55]} 17. Rxc2 {[%clk 0:02:17]}  Bxg3 {[%clk 0:01:50]} 18. Nxg3 {[%clk 0:02:10]}  b5 {[%clk 0:01:49]} 19. Re1 {[%clk 0:02:05]}  Kf7 {[%clk 0:01:44]} 20. Rce2 {[%clk 0:02:03]}  g6 {[%clk 0:01:29]} 21. Re6 {[%clk 0:00:43]}  Rac8 {[%clk 0:01:17]} 22. Rd6 {[%clk 0:00:43]}  Rfd8 {[%clk 0:01:13]} 23. Rxd8 {[%clk 0:00:43]}  Rxd8 {[%clk 0:01:14]} 24. Ne2 {[%clk 0:00:43]}  a5 {[%clk 0:01:10]} 25. a3 {[%clk 0:00:43]}  b4 {[%clk 0:01:00]} 26. axb4 {[%clk 0:00:42]}  axb4 {[%clk 0:01:01]} 27. Ra1 {[%clk 0:00:42]}  Rb8 {[%clk 0:00:59]} 28. Nf4 {[%clk 0:00:41]}  g5 {[%clk 0:00:52]} 29. Ne2 {[%clk 0:00:38]}  Rb6 {[%clk 0:00:45]} 30. Kf1 {[%clk 0:00:37]}  Nf5 {[%clk 0:00:38]} 31. Nd2 {[%clk 0:00:34]}  h5 {[%clk 0:00:35]} 32. g3 {[%clk 0:00:32]}  Nd6 {[%clk 0:00:32]} 33. f3 {[%clk 0:00:32]}  Ke6 {[%clk 0:00:25]} 34. Kf2 {[%clk 0:00:31]}  bxc3 {[%clk 0:00:21]} 35. bxc3 {[%clk 0:00:32]}  Rb2 {[%clk 0:00:21]} 36. Ke1 {[%clk 0:00:32]}  Nb5 {[%clk 0:00:17]} 37. Ra6 {[%clk 0:00:29]}  Kd7 {[%clk 0:00:16]} 38. h4 {[%clk 0:00:24]}  gxh4 {[%clk 0:00:09]} 39. gxh4 {[%clk 0:00:25]}  Rc2 {[%clk 0:00:07]} 40. Kd1 {[%clk 0:00:23]}  Rxc3 {[%clk 0:00:07]} 41. Nxc3 {[%clk 0:00:22]}  Nxc3+ {[%clk 0:00:08]} 42. Ke1 {[%clk 0:00:23]}  Nb5 {[%clk 0:00:07]} 43. Ra8 {[%clk 0:00:17]}  Nbxd4 {[%clk 0:00:06]} 44. Rh8 {[%clk 0:00:18]}  c3 {[%clk 0:00:05]} 45. Nf1 {[%clk 0:00:18]}  Nxf3+ {[%clk 0:00:05]} 46. Kd1 {[%clk 0:00:19]}  d4 {[%clk 0:00:05]} 47. Rxh5 {[%clk 0:00:18]}  Kd6 {[%clk 0:00:04]} 48. Rf5 {[%clk 0:00:18]}  Nce5 {[%clk 0:00:04]} 49. h5 {[%clk 0:00:18]}  Ke6 {[%clk 0:00:02]} 50. Rf4 {[%clk 0:00:17]}  d3 {[%clk 0:00:02]} 51. Ne3 {[%clk 0:00:18]} 1-0


[Site "https://www.chess.com"]